fUSD/lending_fUSD_20260611
["ID","MTS","AMOUNT","RATE_DAILY","PERIOD"]
[424782890,1781159448000,-500.0,0.00014831,2]
[424782879,1781159448000,-150.0,0.00014808,2]
[424782893,1781159448000,-5800.0,0.00014832,2]
[424782906,1781159448000,-5800.0,0.00014858,2]
[424782911,1781159448000,-254.58489995,0.00014865,2]
[424782913,1781159448000,-1749.07478063,0.0001487,2]
[424782915,1781159448000,-25000.0,0.00014874,3]
[424782916,1781159448000,-5800.0,0.00014874,2]
[424782914,1781159448000,-150.0,0.00014873,2]
[424782920,1781159448000,-4346.838,0.00014881,2]
[424782919,1781159448000,-254.58489995,0.0001488,2]
[424782921,1781159448000,-218.352,0.00014881,2]
[424782917,1781159448000,-150.0,0.00014879,2]
[424782918,1781159448000,-150.0,0.00014879,2]
[424782923,1781159448000,-5800.0,0.00014883,2]
[424782922,1781159448000,-25000.0,0.00014882,3]
[424782925,1781159448000,-5800.0,0.00014891,2]
[424782924,1781159448000,-25000.0,0.00014891,3]
[424782912,1781159448000,-5800.0,0.00014866,2]
[424782907,1781159448000,-150.0,0.00014858,2]
[424782892,1781159448000,-500.0,0.00014831,2]
[424782908,1781159448000,-27986.5674368,0.00014862,2]
[424782909,1781159448000,-409.28734248,0.00014862,2]
[424782891,1781159448000,-500.0,0.00014831,2]
[424782894,1781159448000,-254.58489995,0.00014835,2]
[424782896,1781159448000,-1555.5,0.00014843,2]
[424782897,1781159448000,-150.0,0.00014844,2]
[424782900,1781159448000,-25000.0,0.00014847,3]
[424782901,1781159448000,-5800.0,0.00014849,2]
[424782895,1781159448000,-25000.0,0.00014838,3]
[424782926,1781159448000,-254.58489995,0.00014895,2]
[424782902,1781159448000,-150.0,0.0001485,2]
[424782898,1781159448000,-150.0,0.00014844,2]
[424782903,1781159448000,-254.58489995,0.0001485,2]
[424782904,1781159448000,-188.14874168,0.00014856,10]
[424782910,1781159448000,-25000.0,0.00014865,3]
[424782899,1781159448000,-150.0,0.00014845,2]
[424782905,1781159448000,-25000.0,0.00014856,3]
[424782955,1781159449000,-862.88399896,0.000149,2]
[424782960,1781159449000,-150.0,0.00014915,2]
[424782957,1781159449000,-150.0,0.00014901,2]
[424782961,1781159449000,-150.0,0.00014915,2]
[424782954,1781159449000,-1051.47983417,0.000149,2]
[424782956,1781159449000,-152.0,0.000149,3]
[424782953,1781159449000,-2000.0,0.000149,2]
[424782958,1781159449000,-150.0,0.00014901,2]
[424782959,1781159449000,-254.58489995,0.00014911,2]
[424782963,1781159449000,-150.0,0.0001493,2]
[424782972,1781159449000,-300.0,0.00014985,2]
[424782964,1781159449000,-254.58489995,0.00014941,2]
[424782966,1781159449000,-162.13261456,0.00014945,2]
[424782965,1781159449000,-150.0,0.00014943,2]
[424782968,1781159449000,-150.0,0.00014951,2]
[424782967,1781159449000,-150.0,0.00014951,2]
[424782970,1781159449000,-150.0,0.00014958,2]
[424782950,1781159449000,-87135.38377846,0.000149,2]
[424782971,1781159449000,-254.58489995,0.00014971,2]
[424782969,1781159449000,-254.58489995,0.00014956,2]
[424782973,1781159449000,-257.36274763,0.00014986,2]
[424782962,1781159449000,-254.58489995,0.00014926,2]
[424782952,1781159449000,-5800.0,0.000149,2]
[424782943,1781159449000,-151.0,0.000149,3]
[424782951,1781159449000,-3900.0,0.000149,5]
[424782928,1781159449000,-300.0,0.00014899,2]
[424782931,1781159449000,-10000.0,0.000149,2]
[424782930,1781159449000,-14090.6450314,0.000149,3]
[424782927,1781159449000,-300.0,0.00014899,2]
[424782929,1781159449000,-666.0,0.00014899,2]
[424782932,1781159449000,-25000.0,0.000149,3]
[424782974,1781159449000,-285.87761885,0.00014986,2]
[424782934,1781159449000,-152.0,0.000149,3]
[424782938,1781159449000,-151.0,0.000149,3]
[424782937,1781159449000,-151.0,0.000149,3]
[424782935,1781159449000,-152.0,0.000149,3]
[424782936,1781159449000,-152.0,0.000149,3]
[424782940,1781159449000,-151.0,0.000149,3]
[424782939,1781159449000,-151.0,0.000149,3]
[424782941,1781159449000,-151.0,0.000149,3]
[424782942,1781159449000,-151.0,0.000149,3]
[424782945,1781159449000,-301.16322638,0.000149,3]
[424782944,1781159449000,-151.0,0.000149,3]
[424782946,1781159449000,-151.94160012,0.000149,3]
[424782947,1781159449000,-215.83684948,0.000149,3]
[424782948,1781159449000,-152.0,0.000149,3]
[424782949,1781159449000,-55803.12318259,0.000149,2]
[424782933,1781159449000,-219.97283573,0.000149,3]
[424782977,1781159449000,-276.09958385,0.00014986,2]
[424782982,1781159449000,-289.90717118,0.00014986,2]
[424783001,1781159449000,-500.0,0.00014999,2]
[424783003,1781159449000,-500.0,0.00014999,2]
[424783005,1781159449000,-500.0,0.00014999,2]
[424783007,1781159449000,-500.0,0.00014999,2]
[424783006,1781159449000,-549.51495302,0.00014999,2]
[424783008,1781159449000,-500.0,0.00014999,2]
[424783009,1781159449000,-500.0,0.00014999,2]
[424783010,1781159449000,-500.0,0.00014999,2]
[424783011,1781159449000,-500.0,0.00014999,2]
[424783014,1781159449000,-500.0,0.00014999,2]
[424783015,1781159449000,-300.0,0.00014999,2]
[424783013,1781159449000,-500.0,0.00014999,2]
[424783012,1781159449000,-500.0,0.00014999,2]
[424783017,1781159449000,-300.0,0.00014999,2]
[424783016,1781159449000,-300.0,0.00014999,2]
[424782980,1781159449000,-150.75812701,0.00014986,2]
[424783018,1781159449000,-377.99479175,0.00014999,2]
[424783023,1781159449000,-3053676.16042819,0.00015,2]
[424783020,1781159449000,-300.0,0.00014999,2]
[424783021,1781159449000,-300.0,0.00014999,2]
[424783022,1781159449000,-4115912.80031648,0.00015,2]
[424783004,1781159449000,-500.0,0.00014999,2]
[424782997,1781159449000,-539.51,0.00014999,2]
[424783019,1781159449000,-666.0,0.00014999,2]
[424782999,1781159449000,-539.57889603,0.00014999,2]
[424782981,1781159449000,-254.58489995,0.00014986,2]
[424782978,1781159449000,-248.12091067,0.00014986,2]
[424782976,1781159449000,-225.43309031,0.00014986,2]
[424782979,1781159449000,-208.1114482,0.00014986,2]
[424782983,1781159449000,-300.0,0.00014987,2]
[424782975,1781159449000,-210.0975545,0.00014986,2]
[424782984,1781159449000,-500.0,0.00014988,18]
[424782986,1781159449000,-151.0,0.00014997,2]
[424783002,1781159449000,-500.0,0.00014999,2]
[424782988,1781159449000,-300.0,0.00014998,2]
[424782985,1781159449000,-539.51,0.00014988,2]
[424782993,1781159449000,-539.51,0.00014999,2]
[424782994,1781159449000,-539.51,0.00014999,2]
[424782987,1781159449000,-300.0,0.00014998,2]
[424782991,1781159449000,-500.0,0.00014999,2]
[424782990,1781159449000,-570.68856785,0.00014999,19]
[424782992,1781159449000,-500.0,0.00014999,2]
[424782995,1781159449000,-539.51,0.00014999,2]
[424783000,1781159449000,-500.0,0.00014999,2]
[424782998,1781159449000,-539.51,0.00014999,2]
[424782996,1781159449000,-539.51,0.00014999,2]
[424782989,1781159449000,-300.0,0.00014998,2]
[424783025,1781159451000,-4714.39042683,9.9e-05,2]
[424783024,1781159451000,-1316.44962098,9.9e-05,2]
[424783027,1781159452000,-174.942097,0.00013034,2]
[424783028,1781159452000,-319.5075032,0.00013545,2]
[424783026,1781159452000,-268.03035219,9.9e-05,2]
[424783029,1781159452000,-473.00713084,0.00013545,2]
[424783030,1781159452000,-637.06226923,0.00013698,2]
[424783031,1781159452000,-309.66034822,0.00013698,2]
[424783035,1781160187000,500.0,0.00010958,20]
[424783039,1781160596000,-164.85,8.803e-05,2]
[424783040,1781160596000,-250.0,8.812e-05,2]
[424783041,1781160596000,-949.13,8.82e-05,2]
[424783042,1781160596000,-6292.91,8.844e-05,2]
[424783045,1781160596000,-182.73,8.975e-05,2]
[424783046,1781160596000,-1600.0,9.02e-05,2]
[424783044,1781160596000,-150.0,8.945e-05,2]
[424783047,1781160596000,-9113.6,9.065e-05,2]
[424783043,1781160596000,-2046.78,8.916e-05,2]
[424783060,1781160633000,-188.15521262,9.525e-05,2]
[424783066,1781160633000,-500.0,9.65e-05,2]
[424783065,1781160633000,-500.0,9.65e-05,2]
[424783063,1781160633000,-500.0,9.65e-05,2]
[424783062,1781160633000,-186.64962221,9.65e-05,2]
[424783061,1781160633000,-215.95576085,9.636e-05,2]
[424783056,1781160633000,-500.0,9.401e-05,2]
[424783052,1781160633000,-534.5,9.088e-05,2]
[424783057,1781160633000,-150.0,9.525e-05,2]
[424783055,1781160633000,-2027.4,9.159e-05,2]
[424783054,1781160633000,-150.99,9.088e-05,2]
[424783053,1781160633000,-9999.99,9.088e-05,2]
[424783051,1781160633000,-390.25606067,9.077e-05,2]
[424783050,1781160633000,-3853.12,9.065e-05,2]
[424783068,1781160633000,-352.65928729,9.65e-05,2]
[424783059,1781160633000,-150.0,9.525e-05,2]
[424783067,1781160633000,-500.0,9.65e-05,2]
[424783069,1781160633000,-500.0,9.65e-05,2]
[424783101,1781160633000,-504.95050947,9.651e-05,2]
[424783072,1781160633000,-500.0,9.65e-05,2]
[424783100,1781160633000,-1804.97286512,9.651e-05,2]
[424783099,1781160633000,-461.12763942,9.651e-05,2]
[424783096,1781160633000,-11279.8757389,9.651e-05,2]
[424783097,1781160633000,-2368.72,9.651e-05,2]
[424783095,1781160633000,-500.0,9.65e-05,2]
[424783092,1781160633000,-500.0,9.65e-05,2]
[424783094,1781160633000,-500.0,9.65e-05,2]
[424783098,1781160633000,-885.56582339,9.651e-05,2]
[424783087,1781160633000,-500.0,9.65e-05,2]
[424783085,1781160633000,-500.0,9.65e-05,2]
[424783083,1781160633000,-500.0,9.65e-05,2]
[424783081,1781160633000,-500.0,9.65e-05,2]
[424783079,1781160633000,-500.0,9.65e-05,2]
[424783077,1781160633000,-500.0,9.65e-05,2]
[424783075,1781160633000,-500.0,9.65e-05,2]
[424783070,1781160633000,-500.0,9.65e-05,2]
[424783090,1781160633000,-351.93733123,9.65e-05,2]
[424783164,1781160638000,-3461.49,0.00010278,2]
[424783162,1781160638000,-1600.0,0.00010147,2]
[424783158,1781160638000,-161.87,0.00010045,2]
[424783156,1781160638000,-3461.49,0.00010027,2]
[424783152,1781160638000,-162.18392877,0.0001,2]
[424783143,1781160638000,-1300.0,9.9e-05,3]
[424783149,1781160638000,-2600.0,0.0001,3]
[424783147,1781160638000,-467.31490175,9.971e-05,2]
[424783145,1781160638000,-4000.0,9.971e-05,2]
[424783138,1781160638000,-4760.91678703,9.821e-05,2]
[424783166,1781160638000,-500.0,0.00010347,2]
[424783154,1781160638000,-1620.58443615,0.0001,2]
[424783168,1781160638000,-161.87,0.00010366,2]
[424783189,1781160638000,-500.0,0.00010685,2]
[424783181,1781160638000,-500.0,0.00010685,2]
[424783183,1781160638000,-500.0,0.00010685,2]
[424783169,1781160638000,-5369.0,0.000105,5]
[424783172,1781160638000,-164.85,0.00010564,2]
[424783177,1781160638000,-500.0,0.00010685,2]
[424783179,1781160638000,-500.0,0.00010685,2]
[424783175,1781160638000,-500.0,0.00010621,2]
[424783185,1781160638000,-500.0,0.00010685,2]
[424783139,1781160638000,-2180.73,9.852e-05,2]
[424783187,1781160638000,-500.0,0.00010685,2]
[424783191,1781160638000,-500.0,0.00010685,2]
[424783193,1781160638000,-500.0,0.00010685,2]
[424783195,1781160638000,-500.0,0.00010685,2]
[424783170,1781160638000,-3461.49,0.00010529,2]
[424783141,1781160638000,-2000.0,9.9e-05,2]
[424783129,1781160638000,-161.87,9.724e-05,2]
[424783137,1781160638000,-2000.0,9.809e-05,2]
[424783111,1781160638000,-1905.37,9.651e-05,2]
[424783109,1781160638000,-2763.33395894,9.651e-05,2]
[424783110,1781160638000,-855.25000002,9.651e-05,2]
[424783112,1781160638000,-6362.21190137,9.651e-05,2]
[424783115,1781160638000,-24999.99,9.684e-05,2]
[424783114,1781160638000,-164.85,9.684e-05,2]
[424783113,1781160638000,-1470808.62156337,9.651e-05,2]
[424783116,1781160638000,-299.99,9.684e-05,2]
[424783117,1781160638000,-4169.41,9.684e-05,2]
[424783118,1781160638000,-1492.34,9.684e-05,2]
[424783119,1781160638000,-9999.99,9.684e-05,2]
[424783120,1781160638000,-1793.86,9.684e-05,2]
[424783122,1781160638000,-999.99,9.684e-05,2]
[424783121,1781160638000,-250.0,9.684e-05,2]
[424783123,1781160638000,-5998.5998,9.7e-05,2]
[424783125,1781160638000,-4000.0,9.702e-05,2]
[424783127,1781160638000,-300.0,9.702e-05,2]
[424783126,1781160638000,-500.0,9.702e-05,2]
[424783124,1781160638000,-2500.0,9.7e-05,2]
[424783128,1781160638000,-250.0,9.702e-05,2]
[424783207,1781160638000,-3900.0,0.000109,3]
[424783132,1781160638000,-218.352,9.75e-05,2]
[424783130,1781160638000,-150.0,9.749e-05,2]
[424783134,1781160638000,-188.45660723,9.751e-05,2]
[424783133,1781160638000,-188.45660723,9.75e-05,2]
[424783131,1781160638000,-4346.838,9.75e-05,2]
[424783135,1781160638000,-500.0,9.799e-05,2]
[424783136,1781160638000,-255.88865067,9.8e-05,2]
[424783197,1781160638000,-337.0775293,0.00010685,2]
[424783160,1781160638000,-500.0,0.00010073,2]
[424783209,1781160638000,-20184.37238524,0.000109,2]
[424783268,1781160638000,-150.0,0.00010959,2]
[424783271,1781160638000,-166.66,0.00010959,2]
[424783273,1781160638000,-150.0,0.00010959,2]
[424783275,1781160638000,-2083.20542946,0.00011,2]
[424783285,1781160638000,-500.0,0.00011098,21]
[424783277,1781160638000,-3461.49,0.0001103,2]
[424783276,1781160638000,-161.87,0.00011008,2]
[424783282,1781160638000,-500.0,0.00011098,21]
[424783280,1781160638000,-166.66,0.00011068,2]
[424783278,1781160638000,-2000.0,0.00011036,2]
[424783284,1781160638000,-500.0,0.00011098,21]
[424783287,1781160638000,-500.0,0.00011098,21]
[424783289,1781160638000,-500.0,0.00011098,21]
[424783266,1781160638000,-186.7,0.00010959,2]
[424783291,1781160638000,-500.0,0.00011098,21]
[424783295,1781160638000,-152.0,0.00011143,7]
[424783305,1781160638000,-392.983297,0.00011239,2]
[424783307,1781160638000,-1600.0,0.00011275,2]
[424783309,1781160638000,-166.66,0.00011288,2]
[424783297,1781160638000,-500.0,0.00011169,2]
[424783299,1781160638000,-166.66,0.00011178,2]
[424783311,1781160638000,-170.791988,0.00011295,2]
[424783301,1781160638000,-155.04,0.00011233,2]
[424783303,1781160638000,-166.94526,0.00011239,2]
[424783314,1781160638000,-161.87,0.00011329,2]
[424783312,1781160638000,-301.410197,0.00011295,2]
[424783199,1781160638000,-161.87,0.00010687,2]
[424783318,1781160638000,-503.27053058,0.00011443,2]
[424783293,1781160638000,-500.0,0.00011098,2]
[424783264,1781160638000,-500.0,0.00010958,2]
[424783316,1781160638000,-166.66,0.00011397,2]
[424783260,1781160638000,-500.0,0.00010958,2]
[424783201,1781160638000,-255.0,0.00010724,2]
[424783203,1781160638000,-3461.49,0.00010779,2]
[424783205,1781160638000,-500.0,0.00010895,2]
[424783210,1781160638000,-20184.37238519,0.000109,2]
[424783212,1781160638000,-500.0,0.00010958,2]
[424783214,1781160638000,-570.68856785,0.00010958,3]
[424783216,1781160638000,-500.0,0.00010958,2]
[424783218,1781160638000,-500.0,0.00010958,3]
[424783220,1781160638000,-500.0,0.00010958,4]
[424783262,1781160638000,-500.0,0.00010958,2]
[424783232,1781160638000,-500.0,0.00010958,10]
[424783236,1781160638000,-500.0,0.00010958,12]
[424783222,1781160638000,-500.0,0.00010958,5]
[424783227,1781160638000,-500.0,0.00010958,7]
[424783234,1781160638000,-500.0,0.00010958,11]
[424783229,1781160638000,-500.0,0.00010958,8]
[424783258,1781160638000,-500.0,0.00010958,2]
[424783225,1781160638000,-500.0,0.00010958,6]
[424783249,1781160638000,-500.0,0.00010958,18]
[424783254,1781160638000,-500.0,0.00010958,2]
[424783252,1781160638000,-500.0,0.00010958,2]
[424783250,1781160638000,-500.0,0.00010958,19]
[424783256,1781160638000,-500.0,0.00010958,2]
[424783247,1781160638000,-500.0,0.00010958,17]
[424783243,1781160638000,-500.0,0.00010958,15]
[424783241,1781160638000,-500.0,0.00010958,14]
[424783238,1781160638000,-500.0,0.00010958,13]
[424783230,1781160638000,-500.0,0.00010958,9]
[424783245,1781160638000,-500.0,0.00010958,16]
[424783410,1781160639000,-1531.77123695,0.00012667,2]
[424783397,1781160639000,-236.243289,0.00012513,2]
[424783395,1781160639000,-1051.47983418,0.00012512,2]
[424783408,1781160639000,-1531.77123695,0.00012624,2]
[424783389,1781160639000,-417.254308,0.00012404,2]
[424783391,1781160639000,-1531.77123695,0.00012439,2]
[424783387,1781160639000,-1600.0,0.00012402,2]
[424783382,1781160639000,-159.47308989,0.00012329,2]
[424783380,1781160639000,-165.78,0.00012329,2]
[424783378,1781160639000,-164.85,0.00012325,2]
[424783393,1781160639000,-308.648881,0.00012451,2]
[424783399,1781160639000,-1531.77123695,0.00012516,2]
[424783428,1781160639000,-276.0,0.00012877,2]
[424783401,1781160639000,-247.694251,0.00012528,2]
[424783403,1781160639000,-1531.77123695,0.00012574,2]
[424783411,1781160639000,-1531.77123695,0.00012706,2]
[424783415,1781160639000,-1531.77123695,0.00012743,2]
[424783413,1781160639000,-177.25,0.00012718,2]
[424783417,1781160639000,-1531.77123695,0.00012776,2]
[424783420,1781160639000,-1531.77123695,0.00012808,2]
[424783430,1781160639000,-1531.77123695,0.00012893,2]
[424783424,1781160639000,-1531.77123695,0.00012838,2]
[424783422,1781160639000,-2027.4,0.00012822,2]
[424783426,1781160639000,-1531.77123695,0.00012866,2]
[424783432,1781160639000,-5200.0,0.000129,4]
[424783374,1781160639000,-1531.77123695,0.00012255,2]
[424783434,1781160639000,-1531.77123695,0.00012919,2]
[424783405,1781160639000,-500.0,0.00012611,2]
[424783372,1781160639000,-1620.58443615,0.00012242,2]
[424783358,1781160639000,-181.64245,0.00011932,2]
[424783384,1781160639000,-150.71381454,0.00012329,2]
[424783436,1781160639000,-1531.77123695,0.00012945,2]
[424783320,1781160639000,-164.85,0.00011444,2]
[424783324,1781160639000,-166.66,0.00011507,2]
[424783322,1781160639000,-500.0,0.00011467,2]
[424783328,1781160639000,-172.5,0.00011649,2]
[424783330,1781160639000,-172.5,0.00011649,2]
[424783326,1781160639000,-188.45660723,0.00011514,2]
[424783336,1781160639000,-433.0,0.00011796,2]
[424783334,1781160639000,-250.31279834,0.00011768,2]
[424783332,1781160639000,-172.5,0.00011649,2]
[424783338,1781160639000,-248.533256,0.00011799,2]
[424783340,1781160639000,-233.821244,0.00011799,2]
[424783344,1781160639000,-160.0,0.00011814,2]
[424783346,1781160639000,-305.986492,0.00011814,2]
[424783342,1781160639000,-178.628771,0.00011801,2]
[424783348,1781160639000,-451.972985,0.00011814,2]
[424783362,1781160639000,-20184.37238519,0.0001196,2]
[424783360,1781160639000,-203.284901,0.00011932,2]
[424783351,1781160639000,-320.3749,0.00011858,2]
[424783350,1781160639000,-292.685026,0.00011858,2]
[424783354,1781160639000,-1768.67,0.00011897,2]
[424783356,1781160639000,-160.0,0.00011932,2]
[424783364,1781160639000,-152.0,0.00012038,7]
[424783368,1781160639000,-48317.9,0.00012055,2]
[424783370,1781160639000,-575.25599932,0.00012155,2]
[424783366,1781160639000,-500.0,0.00012039,2]
[424783376,1781160639000,-2000.0,0.00012262,2]
[424783385,1781160639000,-181.88651015,0.00012329,2]
[424783438,1781160639000,-1531.77123695,0.00012969,2]
[424783508,1781160639000,-150.0,0.00013488,2]
[424783442,1781160639000,-163.66,0.00012985,2]
[424783500,1781160639000,-1531.77123695,0.00013435,2]
[424783498,1781160639000,-1531.77123695,0.00013406,2]
[424783495,1781160639000,-159.47308989,0.00013397,2]
[424783504,1781160639000,-502.0,0.00013479,2]
[424783505,1781160639000,-150.0,0.00013488,2]
[424783506,1781160639000,-150.0,0.00013488,2]
[424783507,1781160639000,-150.0,0.00013488,2]
[424783511,1781160639000,-150.0,0.00013488,2]
[424783515,1781160639000,-1531.77123695,0.00013491,2]
[424783512,1781160639000,-150.0,0.00013488,2]
[424783440,1781160639000,-736.0,0.00012976,2]
[424783509,1781160639000,-150.0,0.00013488,2]
[424783514,1781160639000,-2000.0,0.00013488,2]
[424783513,1781160639000,-203.85144979,0.00013488,2]
[424783516,1781160639000,-1531.77123695,0.00013505,2]
[424783518,1781160639000,-1531.77123695,0.00013518,2]
[424783519,1781160639000,-150.0,0.00013523,2]
[424783517,1781160639000,-150.0,0.00013516,2]
[424783520,1781160639000,-1600.0,0.0001353,2]
[424783522,1781160639000,-1531.77123695,0.00013532,2]
[424783523,1781160639000,-150.0,0.00013544,2]
[424783524,1781160639000,-1531.77123695,0.00013545,2]
[424783521,1781160639000,-150.0,0.0001353,2]
[424783526,1781160639000,-150.0,0.00013572,2]
[424783527,1781160639000,-150.0,0.00013573,2]
[424783528,1781160639000,-216.97224,0.00013586,2]
[424783529,1781160639000,-150.0,0.00013595,2]
[424783497,1781160639000,-181.88651015,0.00013397,2]
[424783499,1781160639000,-1531.77123695,0.00013421,2]
[424783510,1781160639000,-150.0,0.00013488,2]
[424783493,1781160639000,-1531.77123695,0.00013391,2]
[424783444,1781160639000,-1531.77123695,0.00012992,2]
[424783503,1781160639000,-1531.77123695,0.00013477,2]
[424783456,1781160639000,-1531.77123695,0.00013119,2]
[424783460,1781160639000,-20184.37238519,0.00013148,2]
[424783446,1781160639000,-1531.77123695,0.00013015,2]
[424783454,1781160639000,-1531.77123695,0.000131,2]
[424783448,1781160639000,-1531.77123695,0.00013037,2]
[424783452,1781160639000,-1531.77123695,0.00013079,2]
[424783450,1781160639000,-1531.77123695,0.00013058,2]
[424783464,1781160639000,-1531.77123695,0.00013176,2]
[424783462,1781160639000,-1531.77123695,0.00013158,2]
[424783468,1781160639000,-164.85,0.00013205,2]
[424783466,1781160639000,-1531.77123695,0.00013195,2]
[424783458,1781160639000,-1531.77123695,0.00013139,2]
[424783474,1781160639000,-1531.77123695,0.00013247,2]
[424783472,1781160639000,-1531.77123695,0.0001323,2]
[424783501,1781160639000,-1531.77123695,0.00013449,2]
[424783502,1781160639000,-1531.77123695,0.00013463,2]
[424783491,1781160639000,-1531.77123695,0.00013376,2]
[424783489,1781160639000,-1531.77123695,0.00013361,2]
[424783487,1781160639000,-1531.77123695,0.00013345,2]
[424783525,1781160639000,-150.0,0.00013559,2]
[424783483,1781160639000,-1531.77123695,0.00013314,2]
[424783481,1781160639000,-1531.77123695,0.00013297,2]
[424783485,1781160639000,-1531.77123695,0.0001333,2]
[424783470,1781160639000,-1531.77123695,0.00013213,2]
[424783479,1781160639000,-1531.77123695,0.00013281,2]
[424783476,1781160639000,-1531.77123695,0.00013264,2]
[424783477,1781160639000,-500.0,0.0001328,2]
[424783567,1781160640000,-500.0,0.00013698,2]
[424783564,1781160640000,-590.60459875,0.00013698,2]
[424783563,1781160640000,-579.39543898,0.00013698,2]
[424783562,1781160640000,-500.0,0.00013698,2]
[424783565,1781160640000,-500.0,0.00013698,2]
[424783568,1781160640000,-500.0,0.00013698,2]
[424783561,1781160640000,-500.0,0.00013698,2]
[424783559,1781160640000,-500.0,0.00013698,2]
[424783558,1781160640000,-500.0,0.00013698,2]
[424783560,1781160640000,-500.0,0.00013698,2]
[424783566,1781160640000,-292.30346816,0.00013698,2]
[424783574,1781160640000,-500.0,0.00013698,2]
[424783570,1781160640000,-179.84270164,0.00013698,2]
[424783573,1781160640000,-500.0,0.00013698,2]
[424783572,1781160640000,-500.0,0.00013698,2]
[424783576,1781160640000,-500.0,0.00013698,2]
[424783571,1781160640000,-500.0,0.00013698,2]
[424783577,1781160640000,-500.0,0.00013698,2]
[424783578,1781160640000,-500.0,0.00013698,2]
[424783580,1781160640000,-500.0,0.00013698,2]
[424783579,1781160640000,-500.0,0.00013698,2]
[424783581,1781160640000,-500.0,0.00013698,2]
[424783557,1781160640000,-539.71180244,0.00013698,2]
[424783569,1781160640000,-500.0,0.00013698,2]
[424783575,1781160640000,-500.0,0.00013698,2]
[424783582,1781160640000,-500.0,0.00013698,2]
[424783555,1781160640000,-500.0,0.00013698,2]
[424783531,1781160640000,-150.0,0.00013616,2]
[424783530,1781160640000,-150.0,0.00013601,2]
[424783532,1781160640000,-150.0,0.00013624,2]
[424783534,1781160640000,-150.0,0.0001363,2]
[424783536,1781160640000,-150.0,0.00013657,2]
[424783533,1781160640000,-150.0,0.00013629,2]
[424783535,1781160640000,-160.497418,0.00013637,2]
[424783537,1781160640000,-150.0,0.00013659,2]
[424783540,1781160640000,-150.0,0.00013686,2]
[424783539,1781160640000,-150.0,0.00013666,2]
[424783538,1781160640000,-150.71381454,0.00013664,2]
[424783542,1781160640000,-500.0,0.00013698,2]
[424783544,1781160640000,-503.31933434,0.00013698,2]
[424783543,1781160640000,-500.0,0.00013698,2]
[424783541,1781160640000,-500.0,0.00013697,2]
[424783545,1781160640000,-500.0,0.00013698,2]
[424783547,1781160640000,-362.50237529,0.00013698,2]
[424783548,1781160640000,-500.0,0.00013698,2]
[424783550,1781160640000,-500.0,0.00013698,2]
[424783549,1781160640000,-500.0,0.00013698,2]
[424783546,1781160640000,-500.0,0.00013698,2]
[424783552,1781160640000,-500.0,0.00013698,2]
[424783551,1781160640000,-500.0,0.00013698,2]
[424783553,1781160640000,-500.0,0.00013698,2]
[424783556,1781160640000,-500.0,0.00013698,2]
[424783554,1781160640000,-500.0,0.00013698,2]
[424783584,1781160640000,-500.0,0.00013698,2]
[424783612,1781160640000,-500.0,0.00013698,2]
[424783586,1781160640000,-415.12475003,0.00013698,2]
[424783616,1781160640000,-500.0,0.00013698,2]
[424783617,1781160640000,-504.25668169,0.00013698,2]
[424783618,1781160640000,-500.0,0.00013698,2]
[424783619,1781160640000,-500.0,0.00013698,2]
[424783624,1781160640000,-500.0,0.00013698,2]
[424783620,1781160640000,-500.0,0.00013698,2]
[424783621,1781160640000,-500.0,0.00013698,2]
[424783623,1781160640000,-500.0,0.00013698,2]
[424783627,1781160640000,-500.0,0.00013698,2]